bitfinex-derivatives/quotes_ETHF0:USTF0_20250323
["timestamp","ask_amount","ask_price","bid_price","bid_amount"]
[1742697257479,1.83845249,1999.9,1999.8,1.00028]
[1742697257683,2.36543892,1999.9,1999.8,3.62548]
[1742697257885,1.378,1999.9,1999.8,3.62548]
[1742697260192,2.37823,1999.9,1999.8,3.62548]
[1742697260394,1.378,1999.9,1999.8,3.62548]
[1742697261995,2.37823,1999.9,1999.8,3.62548]
[1742697262497,2.37823,1999.9,1999.8,2.6252]
[1742697262696,2.37823,1999.9,1999.8,1.3209]
[1742697262899,1.00038,1999.6,1999.5,1.3693]
[1742697263491,1.00038,1999.6,1999.5,2.7079]
[1742697263889,1.3821,1999.6,1999.5,3.70833]
[1742697264692,1.69311,1999.8,1999.6,1.00038]
[1742697264892,1.3821,1999.7,1999.6,2.33898]
[1742697265098,2.38243,1999.7,1999.6,2.33898]
[1742697265598,1.69311,1999.8,1999.6,2.33898]
[1742697265799,1.69311,1999.8,1999.7,1.2758]
[1742697266803,3.06481,1999.8,1999.7,1.2758]
[1742697267302,3.06481,1999.8,1999.7,2.27613]
[1742697267495,1.3717,1999.8,1999.7,2.27613]
[1742697268104,2.37198,1999.8,1999.7,2.27613]
[1742697268899,1.3717,1999.8,1999.7,2.27613]
[1742697269106,1.3717,1999.8,1999.7,5.48393]
[1742697270410,2.37198,1999.8,1999.7,5.48393]
[1742697274009,1.3717,1999.8,1999.7,5.48393]
[1742697274509,0.98807905,2000.1,1999.9,1.00021]
[1742697274696,1.289,2000.0,1999.9,1.00021]
[1742697277306,3.2078,2000.5,1999.9,5.70836]
[1742697277513,1.289,2000.3,2000.2,1.00007]
[1742697277907,2.28902,2000.3,2000.2,1.00007]
[1742697278207,1.289,2000.3,2000.2,1.00007]
[1742697278512,1.9876861,2000.4,1999.9,5.70836]
[1742697278813,1.00003,2000.3,1999.9,5.70836]
[1742697279003,2.29033,2000.3,1999.9,3.2078]
[1742697279315,2.29033,2000.3,2000.2,1.00007]
[1742697279500,1.00003,2000.3,2000.2,1.00007]
[1742697280914,1.00003,2000.3,2000.1,1.00009]
[1742697281115,0.6929,2000.2,2000.1,1.00009]
[1742697281910,0.6929,2000.2,2000.0,1.00014]
[1742697282109,1.00012,2000.1,1999.9,4.20798]
[1742697282309,1.68742,2000.1,1999.9,4.20798]
[1742697282508,1.68742,2000.1,2000.0,1.00018]
[1742697282910,0.6873,2000.1,2000.0,1.00018]
[1742697283113,0.6929,2000.2,2000.1,1.00012]
[1742697283712,1.00006,2000.3,2000.2,1.00007]
[1742697284019,1.00006,2000.3,1999.9,3.2078]
[1742697284208,1.00006,2000.3,2000.2,1.00007]
[1742697284411,2.38019,2000.4,2000.3,1.00002]
[1742697284609,2.38019,2000.4,2000.1,3.2078]
[1742697284815,2.38019,2000.4,2000.3,1.00002]
[1742697285413,2.38019,2000.4,2000.2,1.3281]
[1742697285414,2.38019,2000.4,2000.2,2.32813]
[1742697285811,2.38019,2000.4,2000.3,1.00002]
[1742697286012,2.38019,2000.4,2000.2,2.32813]
[1742697287315,0.99998,2000.4,2000.3,1.00002]
[1742697287517,2.35042907,2000.6,2000.3,1.00002]
[1742697287910,0.99994,2000.5,2000.2,1.3281]
[1742697288114,0.99994,2000.5,2000.4,0.99996]
[1742697289323,1.3641,2000.6,2000.5,0.99993]
[1742697289516,0.99984,2000.7,2000.6,0.99986]
[1742697289829,0.99982,2000.8,2000.6,0.99985]
[1742697290027,0.99983,2000.7,2000.6,0.99985]
[1742697290418,1.3494,2000.9,2000.6,0.99985]
[1742697290718,0.99983,2000.7,2000.6,1.69425]
[1742697291314,0.99983,2000.7,2000.6,3.04415]
[1742697292118,0.99983,2000.7,2000.6,2.0443]
[1742697292323,0.99983,2000.7,2000.6,3.04415]
[1742697292515,2.30591,2000.8,2000.6,3.04415]
[1742697292716,0.99981,2000.8,2000.7,1.3499]
[1742697293322,2.35915062,2001.0,2000.7,1.3499]
[1742697293323,2.35915062,2001.0,2000.8,0.99975]
[1742697293519,2.37403,2000.9,2000.8,1.65655]
[1742697293724,1.3743,2000.9,2000.8,1.65655]
[1742697293923,3.8494,2001.1,2000.9,0.99971]
[1742697294112,2.374,2001.0,2000.8,1.65654]
[1742697294316,1.3743,2000.9,2000.8,1.65654]
[1742697295718,2.37403,2000.9,2000.8,1.65654]
[1742697295919,1.3743,2000.9,2000.8,1.65654]
[1742697297318,0.6805,2001.3,2000.8,0.6568]
[1742697297519,0.99964,2001.1,2000.8,0.6568]
[1742697297823,1.3364,2001.2,2000.8,1.65655]
[1742697298021,2.33611,2001.0,2000.8,1.65655]
[1742697298327,2.33613,2000.9,2000.8,1.65655]
[1742697298720,1.3364,2000.9,2000.8,1.65655]
[1742697299621,2.33613,2000.9,2000.8,0.6568]
[1742697299821,0.99978,2000.8,2000.7,4.20759]
[1742697300016,4.1912488,2001.1,2000.7,3.2078]
[1742697300225,0.99963,2001.1,2001.0,3.2078]
[1742697300430,2.30328,2001.0,2000.8,0.99974]
[1742697300626,5.70656,2001.4,2000.7,4.2076]
[1742697300627,2.30333,2000.9,2000.7,4.2076]
[1742697300821,1.9862,2000.8,2000.7,4.2076]
[1742697301133,2.98598,2000.8,2000.7,3.2078]
[1742697301425,2.98598,2000.8,2000.6,0.6944]
[1742697301730,1.3036,2000.7,2000.6,1.69425]
[1742697302522,0.6826,2000.8,2000.7,0.99983]
[1742697302722,1.9622,2000.8,2000.7,0.99983]
[1742697311437,1.9622,2000.8,2000.7,2.29163]
[1742697313938,1.9622,2000.8,2000.7,4.20763]
[1742697319538,1.9622,2000.8,2000.7,4.72905008]
[1742697320045,1.9622,2000.8,2000.7,3.2078]
[1742697320046,2.96198,2000.8,2000.7,3.2078]
[1742697320249,2.96198,2000.8,2000.5,1.323]
[1742697320250,0.99983,2000.7,2000.5,2.32289]
[1742697320540,1.64618,2000.6,2000.5,1.323]
[1742697321148,1.64618,2000.6,2000.4,4.21522738]
[1742697321346,1.9336,2000.5,2000.4,4.21522738]
[1742697322846,0.98805395,2000.7,2000.6,0.99988]
[1742697323044,3.2078,2001.2,2001.1,0.99963]
[1742697323348,2.97989,2001.2,2001.1,0.99963]
[1742697323535,1.9803,2001.2,2001.1,0.99963]
[1742697324844,1.3097,2001.2,2001.1,0.99963]
[1742697325241,1.3097,2001.2,2001.1,2.31863]
[1742697330240,1.3941,2001.4,2001.3,0.99953]
[1742697331549,2.746,2001.4,2001.3,0.99953]
[1742697332755,2.746,2001.4,2001.2,0.99956]
[1742697333052,1.3868,2001.3,2001.2,0.99956]
[1742697334249,1.3868,2001.3,2001.2,1.69646]
[1742697334659,1.3868,2001.3,2001.2,2.95886]
[1742697336958,1.3868,2001.3,2001.2,2.26196]
[1742697337345,2.38633,2001.3,2001.1,0.99959]
[1742697337550,2.38633,2001.3,2001.1,2.28379]
[1742697337745,1.3986,2001.2,2001.1,2.28379]
[1742697338754,2.39818,2001.2,2001.0,0.99964]
[1742697338954,1.3512,2001.1,2001.0,0.99964]
[1742697339157,2.6435,2001.1,2001.0,0.99964]
[1742697342157,1.9725,2001.1,2001.0,0.99964]
[1742697342356,1.9725,2001.1,2001.0,2.39254]
[1742697347661,1.2923,2001.1,2001.0,2.39254]
[1742697347862,1.63101,2001.4,2001.2,0.99954]
[1742697348061,2.90811,2001.4,2001.3,1.386]
[1742697349566,3.59811,2001.4,2001.3,1.386]
[1742697350164,3.59811,2001.4,2001.3,2.38553]
[1742697350368,2.5986,2001.4,2001.3,2.38553]
[1742697350563,3.2078,2001.8,2001.6,0.99935]
[1742697350767,1.3628,2001.8,2001.7,1.3529]
[1742697351161,3.2078,2002.1,2001.7,1.3529]
[1742697351474,0.99928,2001.8,2001.7,1.3529]
[1742697351672,0.99928,2001.8,2001.6,4.20716]
[1742697351873,0.6311,2001.7,2001.6,4.20716]
[1742697352166,1.63043,2001.7,2001.6,3.2078]
[1742697352363,2.29143,2001.7,2001.6,4.20718]
[1742697352669,2.29143,2001.7,2001.6,3.2078]
[1742697352858,0.99938,2001.6,2001.5,1.00688738]
[1742697353064,0.99938,2001.6,2001.5,0.00749738]
[1742697353264,0.99938,2001.6,2001.5,1.00692738]
[1742697353567,0.99938,2001.6,2001.5,0.00749738]
[1742697360072,4.10586402,2001.7,2001.5,0.00749738]
[1742697360278,2.25649123,2001.7,2001.5,0.00749738]
[1742697360483,2.25649123,2001.7,2001.5,1.39329738]
[1742697360776,0.99938,2001.6,2001.5,1.39329738]
[1742697361273,2.38028,2001.6,2001.5,1.39329738]
[1742697361673,2.38028,2001.6,2001.5,2.39272738]
[1742697362379,1.3809,2001.6,2001.5,2.39272738]
[1742697362584,2.38028,2001.6,2001.5,2.39272738]
[1742697362880,1.3809,2001.6,2001.5,2.39272738]
[1742697363582,2.38028,2001.6,2001.5,2.39272738]
[1742697364176,0.96403204,2001.7,2001.6,0.99938]
[1742697364487,0.96403204,2001.7,2001.6,2.33678]
[1742697364488,1.3204,2001.7,2001.6,2.33678]
[1742697364780,1.3204,2001.7,2001.6,3.02428]
[1742697365681,2.31973,2001.7,2001.6,3.02428]
[1742697365880,2.31973,2001.7,2001.6,1.3374]
[1742697366874,2.31973,2001.7,2001.6,2.33678]
[1742697367075,1.96333204,2001.8,2001.7,0.99933]
[1742697367277,3.30233204,2001.8,2001.7,2.93993]
[1742697367582,2.3383,2001.8,2001.7,2.93993]
[1742697367770,2.3383,2001.8,2001.7,1.9406]
[1742697368579,2.3383,2001.8,2001.7,2.93993]
[1742697369381,2.3383,2001.8,2001.7,1.9406]
[1742697369784,0.99938,2001.6,2001.5,4.21470738]
[1742697370687,1.3545,2001.7,2001.6,0.99938]
[1742697371186,1.3545,2001.7,2001.6,2.31578]
[1742697372781,0.6595,2001.9,2001.8,0.99928]
[1742697372989,1.9941,2001.9,2001.8,0.99928]
[1742697373285,2.99334,2001.9,2001.7,3.75189]
[1742697373484,1.65874,2001.9,2001.8,1.4005]
[1742697374186,0.7006,2002.1,2001.8,1.4005]
[1742697374488,1.69522,2002.0,2001.8,2.39976]
[1742697374786,1.69522,2002.0,2001.9,1.2706]
[1742697375189,0.696,2002.0,2001.9,1.2706]
[1742697375486,1.69518,2002.0,2001.9,1.2706]
[1742697376085,0.99928,2001.8,2001.7,0.6714]
[1742697376889,0.99926,2001.9,2001.7,1.67073]
[1742697377385,0.99926,2001.9,2001.8,1.2706]
[1742697377582,0.696,2002.0,2001.8,1.2706]
[1742697377782,0.99923,2001.9,2001.8,1.2706]
[1742697382880,0.99923,2001.9,2001.8,2.26988]
[1742697383176,0.99923,2001.9,2001.8,1.2706]
[1742697383489,0.696,2002.0,2001.8,2.26986]
[1742697383490,1.69521,2002.0,2001.8,2.26986]
[1742697383789,0.7006,2002.1,2001.8,1.2706]
[1742697383981,3.877,2002.2,2002.1,0.99913]
[1742697384593,4.8761,2002.2,2002.0,2.0172]
[1742697384886,4.20688,2002.2,2002.1,2.33053]
[1742697385095,3.2078,2002.2,2002.1,2.33053]
[1742697385285,4.20688,2002.2,2002.1,1.3314]
[1742697385588,3.2078,2002.2,2002.1,2.33053]
[1742697385886,0.6725,2002.4,2002.1,1.3314]
[1742697386091,0.6725,2002.4,2002.0,0.6858]
[1742697386092,0.6725,2002.4,2002.2,1.3314]
[1742697386292,0.99903,2002.3,2002.2,1.3314]
[1742697387188,0.99913,2002.1,2001.8,3.2078]
[1742697387388,0.6892,2002.0,2001.9,2.36161]
[1742697387985,1.68838,2002.0,2001.9,1.3624]
[1742697388186,2.34108,2002.0,2001.9,1.3624]
[1742697388489,0.99923,2001.9,2001.8,3.2078]
[1742697388683,0.99923,2001.9,2001.8,4.5702]
[1742697389394,2.34111,2002.0,2001.8,1.3624]
[1742697389577,2.34111,2002.0,2001.9,1.3624]
[1742697390688,2.34111,2002.0,2001.5,0.00749738]
[1742697390689,0.99938,2001.6,2001.5,0.00749738]
[1742697392198,0.99938,2001.6,2001.5,1.32779738]
[1742697392696,3.00188,2001.6,2001.5,1.32779738]
[1742697399806,3.00188,2001.6,2001.5,0.00749738]
[1742697400193,6.20968,2001.6,2001.5,0.00749738]
[1742697400399,0.9996,2001.2,2001.0,0.99966]
[1742697400608,0.99963,2001.1,2000.9,4.20749]
[1742697401300,0.6415,2001.4,2000.9,4.20753]
[1742697401501,0.99965,2001.1,2000.9,4.20753]
[1742697401701,0.99965,2001.1,2001.0,1.3053]
[1742697406610,2.39028,2001.2,2001.0,1.3053]
[1742697406801,2.39029,2001.2,2001.0,2.30494]
[1742697407002,2.39029,2001.2,2001.1,0.6778]
[1742697407208,2.39029,2001.2,2001.1,2.0777]
[1742697408815,2.39029,2001.2,2001.1,1.3999]
[1742697409008,0.99968,2001.0,2000.9,4.21502738]
[1742697409200,0.99968,2001.0,2000.9,3.21529738]
[1742697409405,0.99968,2001.0,2000.9,4.21502738]
[1742697409607,0.6363,2001.0,2000.9,4.21502738]
[1742697409808,0.6363,2001.0,2000.9,4.87602738]
[1742697410306,3.01798,2001.0,2000.9,6.24322738]
[1742697410906,3.01798,2001.0,2000.9,5.24349738]
[1742697411313,3.01798,2001.0,2000.9,6.24322738]
[1742697412014,3.01798,2001.0,2000.9,5.24349738]
[1742697412218,3.01798,2001.0,2000.9,6.24322738]
[1742697412407,3.01798,2001.0,2000.9,4.58249738]
[1742697412803,3.01798,2001.0,2000.9,5.58222738]
[1742697415011,3.01798,2001.0,2000.9,4.58249738]
[1742697416519,3.01798,2001.0,2000.9,1.37469738]
[1742697419816,0.99968,2001.0,2000.9,2.37442738]
[1742697420122,0.99963,2001.1,2000.9,5.58218738]
[1742697420313,0.99963,2001.1,2001.0,1.2725]
[1742697420514,0.99968,2001.0,2000.9,3.21529738]
[1742697420822,1.63948,2001.0,2000.9,4.52409738]
[1742697421213,1.63948,2001.0,2000.9,1.31629738]
[1742697423022,0.99968,2001.0,2000.9,2.31602738]
[1742697423319,0.99968,2001.0,2000.9,1.31629738]
[1742697423522,0.99968,2001.0,2000.9,2.31602738]
[1742697423825,0.99966,2001.1,2000.9,2.31602738]
[1742697424017,0.99966,2001.1,2001.0,1.3092]
[1742697424323,0.99966,2001.1,2001.0,1.9662]
[1742697428925,1.3431,2001.2,2001.1,0.99963]
[1742697429133,2.34268,2001.2,2001.1,1.2877]
[1742697429330,0.99958,2001.2,2001.1,1.2877]
[1742697429519,1.96347042,2001.3,2001.1,1.2877]
[1742697429720,0.99955,2001.3,2001.1,1.2877]
[1742697429915,0.99955,2001.3,2001.1,2.2873]
[1742697430323,0.99955,2001.3,2001.2,1.3297]
[1742697431332,2.39365,2001.3,2001.2,1.3297]
[1742697431729,2.39365,2001.3,2001.2,2.32928]
[1742697431933,1.3941,2001.3,2001.2,2.32928]
[1742697433925,2.39363,2001.3,2001.2,2.32928]
[1742697434233,1.3941,2001.3,2001.2,2.32928]
[1742697434832,2.39363,2001.3,2001.2,2.32928]
[1742697435029,1.3941,2001.3,2001.2,2.32928]
[1742697435927,1.00694415,2001.4,2001.3,0.99953]
[1742697436130,2.30764415,2001.4,2001.3,2.95073]
[1742697436322,2.30764415,2001.4,2001.3,1.9512]
[1742697436726,1.30813415,2001.4,2001.3,2.95073]
[1742697436928,2.30761415,2001.4,2001.3,1.9512]
[1742697437929,1.30813415,2001.4,2001.3,2.95073]
[1742697439631,0.00743415,2001.4,2001.3,3.64493]
[1742697444233,0.00743415,2001.4,2001.3,2.6454]
[1742697444234,1.00691415,2001.4,2001.3,2.6454]
[1742697444534,1.00691415,2001.4,2001.3,2.95073]
[1742697444734,1.00691415,2001.4,2001.3,1.3186]
[1742697445937,1.00691415,2001.4,2001.2,0.99957]
[1742697445938,0.99955,2001.3,2001.1,0.9996]
[1742697446129,3.60015,2001.3,2001.1,2.3008]
[1742697446529,1.3199,2001.3,2001.2,2.30078]
[1742697446938,2.31943,2001.3,2001.2,1.3012]
[1742697447141,2.31943,2001.3,2001.2,2.30078]
[1742697448238,1.3199,2001.3,2001.0,1.65116]
[1742697448436,0.99961,2001.2,2001.0,2.99586]
[1742697448731,0.99961,2001.2,2001.0,2.34436]
[1742697449529,0.99961,2001.2,2001.1,0.99963]
[1742697449728,0.99961,2001.2,2001.1,1.3447]
[1742697450232,0.99961,2001.2,2001.1,2.34433]
[1742697450434,1.3199,2001.3,2001.1,2.34433]
[1742697450626,0.99958,2001.2,2001.1,2.34433]
[1742697450833,1.3199,2001.3,2001.0,0.99963]
[1742697451032,0.99961,2001.2,2001.0,2.34433]
[1742697451340,0.99961,2001.2,2001.1,1.3103]
[1742697454145,1.3199,2001.3,2000.9,3.21529738]
[1742697454330,0.99968,2001.0,2000.9,4.53139738]
[1742697455441,0.99968,2001.0,2000.9,5.53112738]
[1742697457635,0.99968,2001.0,2000.9,4.53139738]
[1742697461145,0.99968,2001.0,2000.9,1.32359738]
[1742697462837,0.99968,2001.0,2000.9,2.32331738]
[1742697463347,0.99968,2001.0,2000.9,1.32359738]
[1742697464149,0.99968,2001.0,2000.9,2.32332738]
[1742697467651,0.99968,2001.0,2000.9,1.32359738]
[1742697467858,0.99968,2001.0,2000.9,2.32332738]
[1742697469553,0.99966,2001.1,2000.9,2.32332738]
[1742697469748,0.99966,2001.1,2001.0,1.3679]
[1742697470353,0.99966,2001.1,2001.0,2.36758]
[1742697470651,0.99966,2001.1,2001.0,1.3679]
[1742697471953,0.99966,2001.1,2001.0,2.36758]
[1742697473141,0.99966,2001.1,2001.0,1.3679]
[1742697473339,0.99966,2001.1,2001.0,2.36758]
[1742697475153,0.99961,2001.2,2001.0,2.36758]
[1742697475351,0.99961,2001.2,2001.1,1.2686]
[1742697476445,0.99958,2001.2,2001.1,2.26821]
[1742697477247,0.674,2001.3,2001.1,2.26821]
[1742697477248,1.67356,2001.3,2001.1,2.26821]
[1742697477455,1.67356,2001.3,2001.2,1.3267]
[1742697477845,1.67356,2001.3,2001.2,2.32628]
[1742697478253,1.67356,2001.3,2001.2,1.3267]
[1742697481456,2.95126,2001.3,2001.2,1.3267]
[1742697483155,3.58286,2001.3,2001.2,1.3267]
[1742697483749,2.90886,2001.3,2001.2,1.3267]
[1742697484854,1.9093,2001.3,2001.0,1.68905]
[1742697485054,2.97112,2001.2,2001.1,1.3898]
[1742697487956,2.97112,2001.2,2001.1,2.38943]
[1742697488161,2.97112,2001.2,2001.1,1.3898]
[1742697488462,2.97112,2001.2,2001.1,2.38943]
[1742697488758,2.97112,2001.2,2001.1,1.3898]
[1742697489559,1.9715,2001.2,2001.1,2.38943]
[1742697489762,1.2883,2001.2,2001.1,2.38943]
[1742697490663,2.28788,2001.2,2001.1,2.38943]
[1742697492258,2.28788,2001.2,2001.1,1.3898]
[1742697492761,2.28788,2001.2,2001.1,2.38943]
[1742697493962,2.28788,2001.2,2001.1,1.3898]
[1742697494554,2.28788,2001.2,2001.1,2.38943]
[1742697495060,0.99953,2001.3,2001.2,0.99956]
[1742697495260,2.32593,2001.3,2001.2,2.30516]
[1742697495662,1.3264,2001.3,2001.2,2.30516]
[1742697496062,2.32593,2001.3,2001.2,2.30516]
[1742697496362,3.17768814,2001.3,2001.2,2.30516]
[1742697496756,2.32593,2001.3,2001.2,2.30516]
[1742697497163,1.3264,2001.3,2001.2,2.30516]
[1742697497958,2.32593,2001.3,2001.2,2.30516]
[1742697499062,0.97222841,2001.4,2001.3,0.99953]
[1742697499259,0.97222841,2001.4,2001.3,2.98803]
[1742697499260,0.00743415,2001.4,2001.3,2.98803]
[1742697499663,1.29843415,2001.4,2001.3,2.98803]
[1742697504263,2.29791415,2001.4,2001.3,2.98803]
[1742697504460,2.29791415,2001.4,2001.3,1.9885]
[1742697504970,2.29791415,2001.4,2001.3,2.98803]
[1742697506062,2.29791415,2001.4,2001.3,1.9885]
[1742697506956,2.29791415,2001.4,2001.3,2.98803]
[1742697507156,0.00743415,2001.4,2001.3,2.98803]
[1742697507371,1.00691415,2001.4,2001.3,2.98803]
[1742697509164,1.00691415,2001.4,2001.3,1.9885]
[1742697509365,1.70651415,2001.4,2001.3,1.9885]
[1742697510159,0.99965,2001.1,2000.9,3.21529738]
[1742697510362,0.99965,2001.1,2001.0,1.3142]
[1742697522971,1.64875,2001.1,2001.0,1.3142]
[1742697523173,2.33975,2001.1,2001.0,1.3142]
[1742697538882,3.69065,2001.1,2001.0,1.3142]
[1742697540888,3.69065,2001.1,2000.9,3.21529738]
[1742697540889,0.99968,2001.0,2000.9,0.00749738]
[1742697541080,2.34438,2001.0,2000.9,0.00749738]
[1742697541792,0.99983,2000.7,2000.6,1.3478]
[1742697541991,0.99983,2000.7,2000.3,3.2078]
[1742697541992,0.99998,2000.4,2000.3,4.20779]
[1742697542293,0.99998,2000.4,2000.3,4.42032937]
[1742697542484,0.99998,2000.4,2000.3,5.42034937]
[1742697543391,0.99998,2000.4,2000.3,6.77234937]
[1742697543592,0.99998,2000.4,2000.3,6.24932]
[1742697543794,0.99998,2000.4,2000.3,6.7723481]
[1742697544194,0.99998,2000.4,2000.3,5.7723281]
[1742697544982,1.69648,2000.4,2000.3,5.7723281]
[1742697545697,0.99998,2000.4,2000.3,6.7723481]
[1742697545891,0.99998,2000.4,2000.3,5.7723281]
[1742697546391,0.99998,2000.4,2000.3,5.2493]
[1742697547690,0.99986,2000.7,2000.3,5.77077944]
[1742697547882,0.99986,2000.7,2000.5,0.99988]
[1742697548081,0.99986,2000.7,2000.6,1.3771]
[1742697548295,0.99986,2000.7,2000.6,3.02058]
[1742697548991,1.2889,2000.8,2000.7,0.99983]
[1742697549193,2.28868,2000.8,2000.7,1.97]
[1742697549399,0.99978,2000.8,2000.7,1.97]
[1742697554098,1.3232,2000.9,2000.8,0.99978]
[1742697554295,2.32295,2000.9,2000.8,1.3311]
[1742697560102,0.99972,2001.0,2000.8,2.33088]
[1742697560304,2.36452,2001.0,2000.8,2.97174]
[1742697560504,2.36452,2001.0,2000.9,1.3676]
[1742697561008,0.99968,2001.0,2000.9,1.3676]
[1742697561506,2.93676,2001.1,2000.9,5.57513]
[1742697561709,2.26776,2001.1,2001.0,0.6518]
[1742697562008,2.26776,2001.1,2001.0,1.9192]
[1742697563209,0.99961,2001.2,2001.0,2.91888]
[1742697563411,2.26771,2001.2,2001.1,1.2674]
[1742697566412,2.26771,2001.2,2001.1,2.26703]
[1742697566613,2.26771,2001.2,2001.1,1.2674]
[1742697568413,1.67847,2001.3,2001.1,2.26703]
[1742697568716,2.28997,2001.3,2001.1,2.92513]
[1742697569015,2.28997,2001.3,2001.2,1.2631]
[1742697569418,2.95167,2001.3,2001.2,1.2631]
[1742697570217,2.95167,2001.3,2001.2,2.26268]
[1742697570717,2.95167,2001.3,2001.2,1.2631]
[1742697571818,2.95167,2001.3,2001.2,2.26268]
[1742697572716,1.9521,2001.3,2001.2,2.26268]
[1742697573717,1.2904,2001.3,2001.2,2.26268]
[1742697574519,3.21523415,2001.4,2001.3,0.99953]
[1742697574815,3.21523415,2001.4,2001.3,3.03423]
[1742697575015,4.21471415,2001.4,2001.3,2.0347]
[1742697575214,5.59311415,2001.4,2001.3,2.0347]
[1742697575611,4.59363415,2001.4,2001.3,3.03423]
[1742697575811,1.38583415,2001.4,2001.3,3.03423]
[1742697576617,1.38583415,2001.4,2001.3,0.99953]
[1742697576921,1.38583415,2001.4,2001.1,0.00749738]
[1742697576922,0.99958,2001.2,2001.1,0.00749738]
[1742697577613,1.69328,2001.2,2001.1,0.00749738]
[1742697577815,2.98868,2001.2,2001.1,0.00749738]
[1742697578820,2.49909,2001.1,2000.6,4.20764]
[1742697579020,0.99978,2000.8,2000.7,1.3686]
[1742697579222,0.99983,2000.7,2000.6,3.2078]
[1742697579523,1.69353,2000.7,2000.6,4.4786]
[1742697581621,0.99993,2000.5,2000.4,0.00749738]
[1742697582419,2.38043,2000.5,2000.4,0.00749738]
[1742697584824,2.38043,2000.5,2000.4,1.33159738]
[1742697585718,2.38043,2000.5,2000.4,2.33157738]
[1742697586015,0.99986,2000.7,2000.5,0.99992]
[1742697586222,2.36676,2000.7,2000.6,1.3614]
[1742697589823,0.99993,2000.5,2000.4,0.00749738]
[1742697590016,0.99993,2000.5,2000.4,1.37999738]
[1742697590516,2.33863,2000.5,2000.4,1.37999738]
[1742697596333,2.33863,2000.5,2000.4,0.00749738]
[1742697601238,2.2646,2000.6,2000.4,0.00749738]
[1742697601537,0.99993,2000.5,2000.4,1.00742738]
[1742697601836,2.35263,2000.5,2000.4,1.36389738]
[1742697602639,3.8543,2000.7,2000.4,2.36383738]
[1742697602839,2.35258,2000.6,2000.5,0.674]
[1742697603039,2.35258,2000.6,2000.5,2.0304]
[1742697604549,2.98508,2000.6,2000.5,1.3564]
[1742697613948,0.99993,2000.5,2000.4,0.00749738]
[1742697614148,2.36983,2000.5,2000.4,1.84519503]
[1742697615450,2.36983,2000.5,2000.4,2.84518804]
[1742697616556,2.36983,2000.5,2000.4,1.84520804]
[1742697617460,2.36983,2000.5,2000.4,1.84522745]
[1742697619460,2.36983,2000.5,2000.4,1.8454253]
[1742697619661,2.36983,2000.5,2000.4,2.8454053]
[1742697620051,2.36983,2000.5,2000.4,1.8454253]
[1742697620257,2.36983,2000.5,2000.4,2.8454053]
[1742697621163,2.36983,2000.5,2000.4,1.8454253]
[1742697621352,2.36983,2000.5,2000.4,1.32189738]
[1742697621661,2.36983,2000.5,2000.4,2.84522375]
[1742697621863,2.36983,2000.5,2000.4,1.84524375]
[1742697622761,2.36983,2000.5,2000.4,2.84522375]
[1742697623358,0.99993,2000.5,2000.4,2.84521973]
[1742697623566,0.99983,2000.7,2000.4,1.84523973]
[1742697623762,2.30983,2000.7,2000.6,0.99988]
[1742697623958,2.30983,2000.7,2000.6,1.52311009]
[1742697624164,1.31,2000.7,2000.6,4.18691009]
[1742697624555,2.30983,2000.7,2000.6,4.18691009]
[1742697624756,1.31,2000.7,2000.6,4.18691009]
[1742697625254,1.81882504,2000.9,2000.6,3.18703009]
[1742697625255,1.9664679,2000.9,2000.6,3.18703009]
[1742697625562,0.99978,2000.8,2000.7,2.92324225]
[1742697626160,0.99978,2000.8,2000.7,1.92345225]
[1742697626365,0.99978,2000.8,2000.7,1.4004]
[1742697627367,0.99978,2000.8,2000.7,2.40023]
[1742697628372,0.99978,2000.8,2000.7,1.4004]
[1742697628560,0.99978,2000.8,2000.7,2.40023]
[1742697628762,2.31676,2000.9,2000.7,2.40023]
[1742697629069,2.31676,2000.9,2000.8,1.3776]
[1742697629269,0.99976,2000.9,2000.8,1.3776]
[1742697629862,0.99976,2000.9,2000.8,2.37738]
[1742697630069,4.20751,2001.0,2000.8,2.37738]
[1742697630271,3.2078,2001.0,2000.9,2.37733]
[1742697630573,4.20748,2001.0,2000.9,1.3776]
[1742697631664,3.2078,2001.0,2000.9,2.37733]
[1742697631967,4.20748,2001.0,2000.9,2.37733]
[1742697632672,4.20748,2001.0,2000.9,1.3776]
[1742697634273,3.2078,2001.0,2000.9,2.37733]
[1742697634465,4.20748,2001.0,2000.9,2.37733]
[1742697634875,4.20748,2001.0,2000.9,1.3776]
[1742697635766,3.2078,2001.0,2000.6,1.68445]
[1742697635966,0.99983,2000.7,2000.6,3.00895]
[1742697636168,0.99983,2000.7,2000.6,3.5313725]
[1742697636675,0.99988,2000.6,2000.5,3.2078]
[1742697636878,1.67298,2000.6,2000.5,5.05480575]
[1742697637176,1.67298,2000.6,2000.5,3.2078]
[1742697639975,1.67298,2000.6,2000.5,4.5942]
[1742697643177,1.67298,2000.6,2000.5,3.2078]
[1742697645075,1.67298,2000.6,2000.5,4.6076]
[1742697650881,1.67298,2000.6,2000.5,1.3998]
[1742697651284,2.94848,2000.6,2000.5,1.3998]
[1742697657987,0.99993,2000.5,2000.4,0.00749738]
[1742697658186,0.99993,2000.5,2000.4,1.36779738]
[1742697658187,2.94623,2000.5,2000.4,1.36779738]
[1742697672599,0.85188845,2000.6,2000.4,3.86779738]
[1742697672785,3.2078,2001.0,2000.5,4.73097859]
[1742697672983,0.99978,2000.8,2000.7,0.99978]
[1742697673292,0.99978,2000.8,2000.6,0.52324859]
[1742697673293,0.99983,2000.7,2000.6,1.3222]
[1742697673595,2.30633,2000.7,2000.6,1.3222]
[1742697674491,0.99993,2000.5,2000.4,0.00749738]